bitfinex/quotes_SOLUSD_20240705
["timestamp","ask_amount","ask_price","bid_price","bid_amount"]
[1720141298460,6.2928,128.63,128.46,16.3063]
[1720141298630,7.7745,128.63,128.56,19.4452]
[1720141298830,7.7756,128.61,128.53,27.2302]
[1720141299027,100.0,128.66,128.51,38.9073]
[1720141299229,7.7722,128.67,128.59,7.7766]
[1720141299735,106.0516,128.68,128.58,19.4431]
[1720141299975,7.7742,128.63,128.55,19.4471]
[1720141300251,6.0516,128.68,128.59,7.7765]
[1720141300453,7.7706,128.69,128.6,19.439]
[1720141300751,7.77,128.7,128.62,7.7748]
[1720141301058,0.77748407,128.63,128.6,27.2144]
[1720141301425,0.77748407,128.63,128.57,7.7773]
[1720141301625,0.77748407,128.63,128.53,6.28199157]
[1720141301926,0.77748407,128.63,128.57,7.7778]
[1720141302144,0.77748407,128.63,128.56,19.4448]
[1720141302349,0.17,128.62,128.56,19.4448]
[1720141303336,0.17,128.62,128.55,7.7785]
[1720141303337,7.9449,128.62,128.53,19.4503]
[1720141303636,7.9449,128.62,128.54,7.7791]
[1720141303837,7.7755,128.61,128.53,19.4503]
[1720141304043,0.77748407,128.63,128.51,7.7813]
[1720141304256,7.7791,128.55,128.49,6.0788]
[1720141304445,7.7777,128.58,128.47,19.4595]
[1720141304790,7.7753,128.62,128.55,7.7789]
[1720141304933,0.77748407,128.63,128.5,38.83]
[1720141305265,0.77748407,128.63,128.57,7.7773]
[1720141305445,0.77748407,128.63,128.57,7.7778]
[1720141305846,0.77748407,128.63,128.55,27.2256]
[1720141306050,7.7749,128.62,128.55,19.4471]
[1720141306247,0.77748407,128.63,128.48,15.0]
[1720141306248,0.77748407,128.63,128.52,19.4515]
[1720141306428,7.7761,128.6,128.52,27.2322]
[1720141306634,7.7761,128.6,128.53,7.7801]
[1720141306854,0.77748407,128.63,128.48,15.0]
[1720141306855,0.17,128.59,128.54,19.4483]
[1720141307057,0.77748407,128.63,128.56,7.7782]
[1720141307239,0.17,128.62,128.57,7.7777]
[1720141307439,0.77748407,128.63,128.5,100.6401]
[1720141307655,0.77748407,128.63,128.58,19.4417]
[1720141307859,0.77748407,128.63,128.59,7.7761]
[1720141308162,0.77748407,128.63,128.55,19.4472]
[1720141308481,0.77748407,128.63,128.56,7.778]
[1720141308645,0.77748407,128.63,128.55,19.4472]
[1720141308646,7.7753,128.62,128.55,19.4472]
[1720141308850,8.55178407,128.63,128.55,27.2261]
[1720141309051,0.17,128.62,128.55,19.4472]
[1720141309873,0.17,128.62,128.57,7.7777]
[1720141310050,0.77748407,128.63,128.56,7.7783]
[1720141310256,0.77748407,128.63,128.5,83.99219172]
[1720141310479,0.77748407,128.63,128.56,7.7779]
[1720141310681,8.55188407,128.63,128.56,7.7779]
[1720141310881,0.77748407,128.63,128.54,27.2272]
[1720141311053,7.35048407,128.63,128.51,19.4529]
[1720141311253,7.35048407,128.63,128.55,7.7786]
[1720141311493,0.17,128.62,128.54,19.4483]
[1720141311771,0.77748407,128.63,128.57,7.7777]
[1720141312149,8.55188407,128.63,128.56,27.2238]
[1720141312353,0.77748407,128.63,128.52,19.4509]
[1720141312553,0.77748407,128.63,128.54,7.7794]
[1720141312886,0.17,128.62,128.5,7.7815]
[1720141313174,19.4393,128.61,128.49,6.3436]
[1720141313353,0.77748407,128.63,128.52,7.7806]
[1720141313687,7.7749,128.62,128.52,19.4514]
[1720141313858,0.77748407,128.63,128.55,7.7784]
[1720141314055,0.77748407,128.63,128.6,7.7756]
[1720141314387,0.77748407,128.63,128.61,7.7753]
[1720141314559,0.77748407,128.63,128.62,7.7748]
[1720141314760,21.6068,128.77,128.67,19.4285]
[1720141315063,6.0029,128.77,128.69,7.7704]
[1720141315270,35.0111,128.82,128.72,7.7686]
[1720141315592,100.0,128.82,128.71,27.1911]
[1720141315886,145.0899,128.84,128.66,16.3561]
[1720141316095,7.764,128.8,128.72,7.7682]
[1720141316262,7.7635,128.81,128.73,7.7677]
[1720141316575,7.764,128.8,128.72,27.1895]
[1720141317282,100.0,128.82,128.69,19.4263]
[1720141317461,0.17,128.76,128.69,19.4263]
[1720141317659,0.17,128.76,128.71,7.7692]
[1720141317968,0.1,128.79,128.74,7.7675]
[1720141318173,0.1,128.79,128.75,7.7669]
[1720141318554,0.1,128.79,128.74,27.1853]
[1720141319089,0.1,128.79,128.72,7.7682]
[1720141319390,0.17,128.76,128.71,7.7693]
[1720141319760,0.17,128.77,128.7,19.4238]
[1720141319962,0.17,128.77,128.73,7.768]
[1720141320151,0.1,128.79,128.73,7.768]
[1720141320351,0.1,128.79,128.72,27.1894]
[1720141321163,0.1,128.79,128.7,7.7694]
[1720141321468,0.1,128.79,128.72,7.7687]
[1720141321668,0.1,128.79,128.69,19.4261]
[1720141321669,0.1,128.79,128.7,38.8486]
[1720141321857,0.1,128.79,128.77,19.4134]
[1720141322185,0.1,128.79,128.78,7.7651]
[1720141322488,7.7604,128.86,128.78,7.7646]
[1720141322866,7.7604,128.86,128.79,7.7644]
[1720141323081,100.0,128.87,128.74,27.1858]
[1720141323271,100.1,128.89,128.74,19.4185]
[1720141323462,7.7598,128.87,128.79,7.764]
[1720141323677,0.1,128.89,128.71,15.0]
[1720141323861,0.1,128.89,128.78,45.3937]
[1720141324071,0.1,128.89,128.83,19.4044]
[1720141324267,0.1,128.89,128.86,19.4007]
[1720141324581,0.1,128.89,128.88,7.7591]
[1720141324786,0.1,128.89,128.83,19.4048]
[1720141324964,0.1,128.89,128.83,27.1664]
[1720141325166,7.7597,128.88,128.79,27.764]
[1720141325385,0.1,128.89,128.79,20.0]
[1720141325556,0.1,128.89,128.86,19.4]
[1720141325759,0.1,128.89,128.85,7.7609]
[1720141325993,0.1,128.89,128.8,38.83]
[1720141326331,0.1,128.89,128.88,7.7591]
[1720141326490,0.9728091,128.95,128.84,38.83]
[1720141326676,0.9728091,128.95,128.91,27.1503]
[1720141326859,0.9728091,128.95,128.91,19.3931]
[1720141327463,0.9728091,128.95,128.89,7.7584]
[1720141327772,0.9728091,128.95,128.91,7.757]
[1720141327974,0.9728091,128.95,128.86,85.5311]
[1720141328188,0.9728091,128.95,128.94,7.7555]
[1720141329898,0.1,128.99,128.95,7.7547]
[1720141330075,0.7572831,128.95,128.89,19.3961]
[1720141330277,0.7572831,128.95,128.84,6.33779463]
[1720141330610,7.7573,128.92,128.85,19.4011]
[1720141330775,19.3889,128.94,128.82,19.4067]
[1720141330969,7.759,128.89,128.82,19.4067]
[1720141331165,0.17,128.88,128.82,7.7626]
[1720141331370,0.17,128.88,128.8,19.4089]
[1720141331576,0.17,128.88,128.82,27.1678]
[1720141331875,7.7604,128.86,128.79,27.1749]
[1720141332078,7.7621,128.84,128.76,19.4156]
[1720141332279,0.17,128.85,128.73,97.16071066]
[1720141332480,7.7592,128.88,128.8,7.7639]
[1720141332679,0.17,128.87,128.82,7.7626]
[1720141332895,0.17,128.88,128.82,7.7626]
[1720141333073,35.203,128.94,128.83,7.7621]
[1720141333293,7.7573,128.91,128.82,19.4059]
[1720141333474,7.7573,128.91,128.83,7.762]
[1720141333669,7.7591,128.89,128.82,19.4059]
[1720141333998,100.0,128.91,128.76,19.4154]
[1720141334183,6.5952,128.86,128.73,90.88761066]
[1720141334397,0.17,128.85,128.73,118.07541066]
[1720141334697,100.0,128.83,128.73,90.88761066]
[1720141334901,100.0,128.83,128.7,19.4248]
[1720141334902,7.7652,128.78,128.7,19.4248]
[1720141335071,7.7661,128.77,128.68,7.7707]
[1720141335270,0.17,128.76,128.67,19.4292]
[1720141335471,0.17,128.76,128.69,7.77]
[1720141335898,0.17,128.76,128.71,7.7688]
[1720141336099,15.8438,128.83,128.74,19.4182]
[1720141336405,15.8438,128.83,128.66,124.4212]
[1720141336406,7.764,128.8,128.71,19.4233]
[1720141336588,7.7652,128.78,128.71,27.1925]
[1720141336791,7.7652,128.78,128.71,19.4233]
[1720141336977,15.8438,128.83,128.75,7.7669]
[1720141337183,0.17,128.82,128.76,7.7661]
[1720141337499,169.8059,128.89,128.76,7.7661]
[1720141337500,7.761,128.85,128.76,19.4158]
[1720141337683,100.0,128.88,128.76,19.4158]
[1720141337882,7.7629,128.82,128.74,7.7674]
[1720141338108,7.7622,128.83,128.75,7.7668]
[1720141338312,7.7622,128.83,128.74,19.4178]
[1720141338610,7.764,128.8,128.72,7.7687]
[1720141339204,0.17,128.79,128.71,19.423]
[1720141339386,6.5952,128.86,128.72,20.0]
[1720141339594,6.5952,128.86,128.78,19.412]
[1720141339799,7.7616,128.84,128.77,7.7656]
[1720141339985,14.356,128.86,128.78,7.7649]
[1720141340300,14.356,128.86,128.75,19.4174]
[1720141340301,7.7614,128.85,128.75,19.4174]
[1720141340485,6.5952,128.86,128.77,7.7657]
[1720141340697,7.7617,128.84,128.76,7.7663]
[1720141341084,0.77663871,128.77,128.75,19.4174]
[1720141341286,0.77663871,128.77,128.72,7.7682]
[1720141341486,0.77663871,128.77,128.73,19.4192]
[1720141341705,0.77663871,128.77,128.75,19.4165]
[1720141341922,106.26847492,128.91,128.74,91.8886]
[1720141341923,6.4771,128.91,128.74,91.8886]
[1720141342077,6.4771,128.91,128.87,7.7597]
[1720141342280,6.4771,128.91,128.86,27.1606]
[1720141342508,15.9430831,128.95,128.86,27.1606]
[1720141342690,135.3304831,128.95,128.83,19.4051]
[1720141343012,135.3304831,128.95,128.8,19.4094]
[1720141343013,19.392,128.92,128.8,19.4094]
[1720141343193,19.392,128.92,128.73,261.56603079]
[1720141343194,7.7604,128.86,128.77,19.4139]
[1720141343392,7.7597,128.88,128.77,19.4139]
[1720141343596,7.7603,128.86,128.77,58.2398]
[1720141343796,100.0,128.91,128.74,19.4182]
[1720141343797,0.17,128.85,128.74,19.4182]
[1720141343997,7.7623,128.83,128.75,7.7668]
[1720141344314,0.17,128.82,128.75,7.7668]
[1720141344497,0.17,128.82,128.71,19.4233]
[1720141344809,6.0695,128.86,128.79,19.4106]
[1720141345116,0.17,128.85,128.79,19.4106]
[1720141345286,6.0695,128.86,128.79,19.4106]
[1720141345496,0.7572831,128.89,128.82,7.7622]
[1720141345694,0.7572831,128.89,128.79,77.6523]
[1720141345906,0.7572831,128.89,128.8,20.0]
[1720141346323,0.7572831,128.89,128.86,7.7602]
[1720141346497,0.7572831,128.89,128.85,19.4014]
[1720141346693,0.7572831,128.89,128.85,27.1622]
[1720141346910,7.7597,128.88,128.8,7.7639]
[1720141347115,7.7592,128.88,128.8,7.7639]
[1720141347296,7.761,128.85,128.76,16.1492]
[1720141347489,7.761,128.85,128.78,7.765]
[1720141347811,19.3981,128.88,128.77,7.7651]
[1720141348114,0.17,128.87,128.78,19.412]
[1720141348316,7.7608,128.86,128.78,19.412]
[1720141348499,7.7608,128.86,128.78,27.177]
[1720141348693,7.7608,128.86,128.79,7.7644]
[1720141348694,0.17,128.85,128.79,7.7644]
[1720141349016,0.7572831,128.89,128.8,19.4091]
[1720141349187,8.5158831,128.89,128.82,7.7626]
[1720141349389,7.7599,128.87,128.8,19.4091]
[1720141349588,7.7604,128.86,128.78,7.765]
[1720141349823,0.7572831,128.89,128.77,19.4138]
[1720141350112,0.7572831,128.89,128.82,7.7625]
[1720141350303,0.17,128.88,128.82,7.7625]
[1720141350613,0.17,128.88,128.81,19.4076]
[1720141350990,0.7572831,128.89,128.75,85.5643]
[1720141351193,0.7572831,128.89,128.76,20.0]
[1720141351397,0.7572831,128.89,128.85,7.7604]
[1720141351626,0.7572831,128.89,128.8,46.73]
[1720141351915,6.2333,128.98,128.83,85.56]
[1720141352091,6.2333,128.98,128.93,7.7561]
[1720141352519,6.2333,128.98,128.92,27.1476]
[1720141352729,0.1,128.99,128.87,77.627]
[1720141353021,0.1,128.99,128.94,19.388]
[1720141353619,0.1,128.99,128.91,19.3929]
[1720141353850,7.7545,128.96,128.88,27.1565]
[1720141353994,7.8531,128.99,128.87,38.797]
[1720141354192,0.17,128.98,128.91,7.757]
[1720141354522,7.9235,128.98,128.9,19.3938]
[1720141354694,0.17,128.98,128.93,19.3893]
[1720141354894,0.1,128.99,128.95,7.7548]
[1720141355511,0.1,128.99,128.93,19.3893]
[1720141355689,0.1,128.99,128.98,7.7531]
[1720141357111,0.1,128.99,128.98,27.7531]
[1720141357597,0.8329727,129.02,129.01,27.1296]
[1720141357787,0.8329727,129.02,129.01,47.1296]
[1720141358018,0.8329727,129.02,129.01,27.1296]
[1720141358196,0.8329727,129.02,129.01,47.1296]
[1720141358694,0.8329727,129.02,129.01,19.3783]
[1720141359219,0.8329727,129.02,128.98,27.1352]
[1720141359622,0.8329727,129.02,128.97,7.7536]
[1720141359791,0.8329727,129.02,129.01,7.7513]
[1720141361098,1.60810642,129.02,129.0,27.1304]
[1720141361511,1.60810642,129.02,129.0,19.3786]
[1720141361813,1.60810642,129.02,129.0,27.1303]
[1720141362115,1.60810642,129.02,129.01,7.7513]
[1720141363103,1.60810642,129.02,128.97,19.3837]
[1720141363325,1.60810642,129.02,128.97,27.1369]
[1720141363524,1.60810642,129.02,128.97,7.7536]
[1720141363733,1.60810642,129.02,128.92,15.3787]
[1720141363734,1.60810642,129.02,128.98,7.7529]
[1720141363933,1.60810642,129.02,129.01,7.7513]
[1720141364139,1.60810642,129.02,129.0,7.7518]
[1720141364435,1.60810642,129.02,128.99,19.3812]
[1720141364730,1.60810642,129.02,129.0,7.7517]
[1720141365235,1.60810642,129.02,128.92,15.3787]
[1720141365236,1.60810642,129.02,128.96,27.1394]
[1720141365438,1.60810642,129.02,128.97,7.7534]
[1720141365607,1.60810642,129.02,128.93,19.3899]
[1720141365804,0.17,129.01,128.95,7.7544]
[1720141366035,0.17,129.01,128.93,19.3899]
[1720141366036,7.9216,129.01,128.93,19.3899]
[1720141366335,7.7526,128.99,128.93,19.3899]
[1720141366543,7.7536,128.98,128.91,7.7571]
[1720141366836,7.7518,129.01,128.93,7.756]
[1720141367009,0.17,129.0,128.89,38.7899]
[1720141367213,1.60810642,129.02,128.96,7.7542]
[1720141367427,0.17,129.01,128.96,7.7542]
[1720141367606,0.17,129.01,128.94,19.3878]
[1720141368034,0.17,129.01,128.91,19.3932]
[1720141368219,0.17,129.01,128.87,6.12590058]
[1720141368220,119.5491,129.01,128.87,6.12590058]
[1720141368423,7.7532,128.98,128.9,7.7574]
[1720141368630,1.60810642,129.02,128.93,19.3902]
[1720141368851,7.9217,129.01,128.93,27.1461]
[1720141369138,7.7528,128.99,128.91,7.757]
[1720141369438,0.17,128.98,128.9,19.394]
[1720141369617,0.17,128.98,128.93,7.756]
[1720141370038,0.17,128.98,128.9,19.394]
[1720141370635,7.9235,128.98,128.9,27.1517]
[1720141370822,0.17,128.98,128.92,19.3907]
[1720141371016,0.17,128.98,128.94,7.7554]
[1720141371215,0.17,128.98,128.93,7.7561]
[1720141371540,1.60810642,129.02,128.89,27.1536]
[1720141371541,0.17,128.99,128.89,27.1536]
[1720141372114,0.17,128.99,128.86,64.53883424]
[1720141372311,7.7543,128.96,128.89,7.7585]
[1720141372534,1.60810642,129.02,128.86,45.13883424]
[1720141372817,1.60810642,129.02,128.92,19.3912]
[1720141372818,7.7514,129.01,128.92,19.3912]
[1720141373126,7.7532,128.98,128.91,7.7573]
[1720141373927,7.7526,128.99,128.92,7.7567]
[1720141374242,0.17,128.98,128.94,7.7552]
[1720141374417,0.17,128.98,128.93,27.1453]
[1720141374623,7.7542,128.97,128.9,7.7576]
[1720141374836,0.17,128.96,128.87,7.7596]
[1720141375036,6.3009,128.93,128.88,7.7588]
[1720141375218,6.3009,128.93,128.86,19.4002]
[1720141375427,6.3009,128.93,128.86,27.1602]
[1720141375641,0.17,128.92,128.86,27.1602]
[1720141375816,7.927,128.92,128.86,19.4002]
[1720141376012,0.17,128.92,128.83,19.405]
[1720141376223,0.17,128.92,128.84,7.7611]
[1720141376425,0.17,128.92,128.86,7.7603]
[1720141376630,0.17,128.92,128.82,19.4061]
[1720141376631,100.17,128.92,128.82,19.4061]
[1720141376838,100.17,128.92,128.78,129.67812272]
[1720141376839,7.7596,128.88,128.8,7.7639]
[1720141377029,7.7596,128.88,128.81,7.7633]
[1720141377030,7.7592,128.88,128.81,7.7633]
[1720141377241,0.17,128.87,128.81,7.7633]
[1720141377429,7.7586,128.89,128.81,7.7632]
[1720141377616,7.9294,128.88,128.81,7.7632]
[1720141377820,0.17,128.88,128.82,7.7625]
[1720141378038,0.17,128.88,128.82,19.4068]
[1720141378362,7.9292,128.88,128.82,19.4068]
[1720141378524,7.9292,128.88,128.8,7.7634]
[1720141379355,7.9292,128.88,128.81,7.7631]
[1720141379724,7.7597,128.87,128.8,7.7637]
[1720141379925,106.3009,128.93,128.81,19.4076]
[1720141380157,7.759,128.89,128.82,7.7626]
[1720141380339,0.17,128.88,128.76,6.31598257]
[1720141380644,0.17,128.88,128.82,19.4062]
[1720141381019,7.7575,128.91,128.84,19.403]
[1720141384465,0.8329727,129.02,129.01,7.7513]
[1720141384627,0.8329727,129.02,129.01,27.7513]
[1720141384828,0.8329727,129.02,129.01,7.7513]
[1720141385030,0.8329727,129.02,129.01,27.7513]
[1720141385956,0.8329727,129.02,129.01,7.7513]
[1720141386864,0.8329727,129.02,128.95,7.7548]
[1720141387066,0.8329727,129.02,128.94,19.3875]
[1720141387260,0.8329727,129.02,128.98,7.7529]
[1720141387463,0.8329727,129.02,128.99,7.7523]
[1720141387780,0.8329727,129.02,129.01,7.7513]
[1720141387983,0.8329727,129.02,128.99,27.1323]
[1720141388158,0.8329727,129.02,129.0,7.7517]
[1720141388362,0.8329727,129.02,128.99,19.3799]
[1720141388672,0.8329727,129.02,128.96,27.1396]
[1720141388879,7.3992727,129.02,128.88,90.78182899]
[1720141389176,107.3992727,129.02,128.89,19.3961]
[1720141389395,7.3992727,129.02,128.92,7.7566]
[1720141389553,7.3992727,129.02,128.93,7.7555]
[1720141389763,0.17,129.01,128.87,38.7974]
[1720141390286,7.7519,129.0,128.93,7.756]
[1720141390577,7.7519,129.0,128.92,7.7566]
[1720141390961,0.17,128.99,128.91,19.3922]
[1720141391184,0.17,128.99,128.91,27.1495]
[1720141391357,7.7531,128.98,128.91,27.1495]
[1720141391558,7.7525,128.99,128.92,7.7567]
[1720141391789,7.755,128.95,128.88,19.3975]
[1720141392086,7.7563,128.93,128.85,27.1628]
[1720141392401,0.17,128.92,128.85,27.1628]
[1720141392555,6.6241,128.92,128.82,19.4064]
[1720141392976,7.7597,128.88,128.8,7.7639]
[1720141393276,6.4541,128.92,128.81,7.7632]
[1720141393479,100.0,128.91,128.81,7.7632]
[1720141393684,7.759,128.89,128.81,7.7632]
[1720141393893,0.17,128.88,128.81,7.7632]
[1720141394464,0.17,128.88,128.82,7.7627]
[1720141394792,0.17,128.88,128.81,7.7632]
[1720141394979,7.7633,128.81,128.74,19.4188]
[1720141395163,0.17,128.88,128.76,19.4148]
[1720141395359,0.17,128.88,128.78,7.7651]
[1720141395683,7.761,128.85,128.76,19.4148]
[1720141395885,7.9317,128.84,128.77,7.7657]
[1720141396097,7.9317,128.84,128.76,27.181]
[1720141396391,7.7624,128.83,128.76,19.4148]
[1720141396588,100.0,128.87,128.77,7.7657]
[1720141396791,7.9304,128.86,128.78,7.7649]
[1720141397087,7.761,128.85,128.77,7.7657]
[1720141397256,0.17,128.84,128.76,19.4148]
[1720141397459,0.17,128.84,128.78,19.4117]
[1720141397678,6.28388992,128.89,128.79,7.7639]
[1720141397882,6.4541,128.92,128.76,38.8306]
[1720141398198,7.7598,128.87,128.8,7.7638]
[1720141398493,100.0,128.9,128.79,19.4111]
[1720141398681,7.7615,128.85,128.75,19.4163]
[1720141398868,100.0,128.9,128.78,19.4126]
[1720141399069,100.0,128.9,128.78,27.1777]
[1720141399259,100.0,128.86,128.74,19.4175]
[1720141399459,119.3991,128.88,128.74,19.4175]
[1720141399775,7.7616,128.84,128.76,7.7662]
[1720141400172,7.7642,128.8,128.72,7.7687]
[1720141400376,0.17,128.79,128.71,19.523]
[1720141400887,7.7652,128.78,128.71,19.523]
[1720141401069,0.77694041,128.72,128.71,0.1]
[1720141402286,0.77694041,128.72,128.71,7.8694]
[1720141402811,0.77694041,128.72,128.71,0.1]
[1720141404100,0.94694041,128.72,128.71,0.1]
[1720141404883,0.77694041,128.72,128.71,0.1]
[1720141405092,0.77694041,128.72,128.71,7.8694]
[1720141406108,6.325,128.8,128.72,7.7684]
[1720141406416,7.7646,128.79,128.71,27.2918]
[1720141407117,106.325,128.8,128.71,0.1]
[1720141407284,7.7685,128.73,128.71,0.1]
[1720141407607,45.155,128.8,128.71,0.1]
[1720141407789,7.7657,128.78,128.71,0.1]
[1720141408290,7.767,128.75,128.71,0.1]
[1720141408505,19.4126,128.79,128.71,0.1]
[1720141408798,0.17,128.78,128.71,0.1]
[1720141409192,6.325,128.8,128.71,0.1]
[1720141409496,7.767,128.75,128.71,0.1]
[1720141409698,7.7664,128.76,128.71,0.1]
[1720141409903,0.17,128.75,128.71,0.1]
[1720141410108,7.937,128.75,128.71,0.1]
[1720141410676,125.7362,128.8,128.71,7.8688]
[1720141410677,7.7651,128.79,128.71,7.8688]
[1720141411174,6.0422,128.86,128.72,20.0]
[1720141411479,15.181,128.89,128.8,7.7634]
[1720141411691,7.7598,128.87,128.79,7.7644]
[1720141411892,7.7598,128.87,128.8,7.7637]
[1720141412079,6.0422,128.91,128.8,7.7638]
[1720141412405,6.0422,128.91,128.75,124.3949]
[1720141412717,6.0422,128.91,128.79,19.411]
[1720141412903,7.761,128.85,128.78,7.7647]
[1720141413079,100.0,128.9,128.71,38.9452]
[1720141413287,7.7616,128.84,128.76,7.7662]
[1720141413480,19.401,128.86,128.75,19.4165]
[1720141413800,7.762,128.84,128.77,19.4133]
[1720141414002,6.0422,128.91,128.79,19.4105]
[1720141414215,6.0422,128.91,128.75,38.8326]
[1720141414415,13.8001,128.91,128.84,7.7614]
[1720141414712,6.0422,128.91,128.84,7.7609]
[1720141414874,7.7562,128.93,128.85,7.7606]
[1720141415079,7.7562,128.93,128.84,19.403]
[1720141415080,7.7581,128.9,128.83,7.7621]
[1720141415499,7.7581,128.9,128.82,7.7627]
[1720141415809,7.7586,128.89,128.82,7.7627]
[1720141416007,7.7586,128.89,128.81,19.4078]
[1720141416008,6.5427,128.96,128.83,19.4045]
[1720141416210,14.2975,128.96,128.88,7.759]
[1720141417003,7.7551,128.95,128.88,7.759]
[1720141417203,6.5427,128.96,128.86,7.7597]
[1720141417502,7.7562,128.93,128.85,7.7608]
[1720141417711,6.5427,128.96,128.86,7.7601]
[1720141417894,125.9299,128.96,128.84,19.4032]
[1720141418095,7.7586,128.89,128.82,7.7627]
[1720141418302,19.3897,128.94,128.83,7.7619]
[1720141418504,7.7574,128.91,128.83,7.762]
[1720141418705,6.5427,128.96,128.84,19.4037]
[1720141418913,6.5427,128.96,128.88,19.397]
[1720141419091,7.7532,128.98,128.9,7.7575]
[1720141419289,7.7532,128.98,128.88,19.397]
[1720141419497,7.7532,128.98,128.9,7.7578]
[1720141419699,7.7538,128.97,128.89,7.7584]
[1720141419898,7.7533,128.98,128.9,7.7576]
[1720141420114,7.7527,128.99,128.92,7.7566]
[1720141420620,7.7527,128.99,128.92,27.1475]
[1720141420621,7.7526,128.99,128.92,27.1475]
[1720141420808,21.3292,129.01,128.88,19.3968]
[1720141420994,7.7532,128.98,128.91,7.7572]
[1720141421406,7.7532,128.98,128.88,19.3968]
[1720141421407,14.0125,129.01,128.94,7.7555]
[1720141421722,14.0125,129.01,128.93,7.756]
[1720141422017,6.2611,129.01,128.92,27.1477]
[1720141422328,7.7525,128.99,128.91,7.7572]
[1720141422508,7.7525,128.99,128.92,7.7565]
[1720141422723,7.7531,128.98,128.91,27.1497]
[1720141423028,6.2611,129.01,128.88,19.397]
[1720141423200,6.2611,129.01,128.9,7.7578]
[1720141423201,7.7531,128.98,128.9,7.7578]
[1720141423705,7.7532,128.98,128.83,77.6408]
[1720141423910,0.17,128.97,128.91,7.7573]
[1720141424113,7.9239,128.97,128.9,19.394]
[1720141424302,7.7545,128.96,128.89,7.7583]
[1720141424504,7.7553,128.95,128.87,19.3985]
[1720141424818,0.17,128.94,128.88,7.759]
[1720141425013,7.7561,128.93,128.83,45.06481023]
[1720141425221,7.7562,128.93,128.85,7.7604]
[1720141425427,0.17,128.92,128.81,15.7263]
[1720141425630,7.7592,128.88,128.81,6.25524754]
[1720141425807,7.9272,128.92,128.84,7.761]
[1720141426135,0.17,128.92,128.84,27.164]
[1720141426325,7.9272,128.92,128.84,19.403]
[1720141426933,0.17,128.92,128.84,19.403]
[1720141427126,7.7574,128.91,128.84,19.403]
[1720141427427,0.17,128.9,128.83,7.7616]
[1720141427631,7.928,128.9,128.83,7.7616]
[1720141427830,7.7588,128.89,128.82,19.4062]
[1720141428036,7.7594,128.88,128.81,7.7628]
[1720141428208,0.17,128.87,128.79,27.175]
[1720141428529,7.7615,128.84,128.76,19.4152]
[1720141428704,7.7623,128.83,128.76,27.1814]
[1720141428909,7.7629,128.82,128.71,6.2375]
[1720141429119,7.7626,128.83,128.74,7.7675]
[1720141429332,0.17,128.82,128.74,7.7675]
[1720141429509,7.7635,128.81,128.74,7.7675]
[1720141429704,7.7629,128.82,128.74,7.7675]
[1720141429917,7.7615,128.85,128.77,7.7653]
[1720141430222,0.17,128.84,128.77,7.7655]
[1720141430522,7.9317,128.84,128.76,7.7663]
[1720141430714,7.7624,128.83,128.76,7.7663]
[1720141430919,0.17,128.82,128.76,7.7662]
[1720141431311,0.17,128.82,128.72,27.1902]
[1720141431312,7.7641,128.8,128.72,27.1902]
[1720141431633,100.0,128.83,128.71,0.1]
[1720141431844,7.7658,128.77,128.71,0.1]